fUST/lending_fUST_20250110
["ID","MTS","AMOUNT","RATE_DAILY","PERIOD"]
[348336234,1736451044424,-1263.74,0.00020545,3]
[348336236,1736451044434,-500.0,0.00020545,3]
[348336239,1736451044444,-602.56162415,0.00020545,3]
[348336240,1736451044453,-500.0,0.00020545,3]
[348336243,1736451044463,-500.0,0.00020545,3]
[348336245,1736451044473,-500.0,0.00020545,3]
[348336246,1736451044482,-500.0,0.00020545,3]
[348336249,1736451044491,-1263.74,0.00020546,3]
[348336251,1736451044501,-500.0,0.00020547,3]
[348336253,1736451044510,-500.0,0.00020547,3]
[348336255,1736451044519,-500.0,0.00020547,3]
[348336257,1736451044529,-167.04315328,0.00020564,2]
[348336259,1736451044538,-1263.74,0.00020752,3]
[348336261,1736451044547,-1263.74,0.00020752,3]
[348336263,1736451044556,-1263.74,0.00020752,3]
[348336264,1736451044566,-1263.74,0.00020752,3]
[348336266,1736451044575,-1263.78,0.00020752,3]
[348336269,1736451044585,-500.0,0.0002076,3]
[348336271,1736451044595,-1685.52,0.0002076,3]
[348336273,1736451044604,-1138.58,0.00020762,3]
[348336274,1736451044614,-500.0,0.00020765,3]
[348336276,1736451044623,-500.0,0.00020816,3]
[348336278,1736451044632,-617.14,0.00020816,2]
[348336280,1736451044641,-600.96,0.00020816,3]
[348336282,1736451044651,-500.0,0.00020816,3]
[348336285,1736451044660,-226.77,0.00020816,3]
[348336286,1736451044669,-500.0,0.00020816,3]
[348336289,1736451044679,-500.0,0.00020816,3]
[348336291,1736451044689,-500.0,0.00020816,3]
[348336293,1736451044700,-500.0,0.00020816,3]
[348336295,1736451044709,-500.0,0.00020817,3]
[348336297,1736451044718,-500.0,0.00020817,3]
[348336299,1736451044727,-500.0,0.00020817,3]
[348336301,1736451044736,-508.7662507,0.00020817,3]
[348336303,1736451044746,-338.44,0.00020817,3]
[348336305,1736451044756,-242.92,0.00020817,3]
[348336307,1736451044765,-287.49,0.00020817,3]
[348336309,1736451044775,-500.0,0.00020817,3]
[348336311,1736451044785,-500.0,0.00020817,3]
[348336313,1736451044794,-539.88,0.00020817,3]
[348336315,1736451044803,-500.0,0.00020817,3]
[348336317,1736451044812,-500.0,0.00020817,3]
[348336319,1736451044821,-638.49,0.00020817,3]
[348336321,1736451044831,-500.0,0.00020817,3]
[348336323,1736451044840,-372.87,0.00020817,3]
[348336325,1736451044849,-6844.32,0.00020817,3]
[348336327,1736451044858,-500.0,0.00020817,3]
[348336329,1736451044868,-500.0,0.00020817,3]
[348336331,1736451044877,-500.0,0.00020817,3]
[348336333,1736451044887,-500.0,0.00020817,3]
[348336335,1736451044897,-500.0,0.00020817,3]
[348336337,1736451044906,-500.0,0.00020817,3]
[348336339,1736451044916,-500.0,0.00020817,3]
[348336341,1736451044925,-500.0,0.00020817,3]
[348336343,1736451044934,-500.0,0.00020817,3]
[348336345,1736451044944,-252.15,0.00020817,3]
[348336347,1736451044953,-634.26,0.00020817,3]
[348336349,1736451044963,-219.51,0.00020817,3]
[348336351,1736451044973,-2083.33,0.00020817,3]
[348336353,1736451044983,-361.56,0.00020817,3]
[348336355,1736451044992,-500.0,0.00020818,3]
[348336357,1736451045003,-500.0,0.00020818,3]
[348336359,1736451045012,-500.0,0.00020818,3]
[348336361,1736451045021,-187.23,0.00020818,3]
[348336363,1736451045031,-500.0,0.00020818,3]
[348336365,1736451045040,-500.0,0.00020818,3]
[348336367,1736451045050,-351.87,0.00020818,3]
[348336369,1736451045059,-769.01,0.00020818,3]
[348336371,1736451045068,-386.91,0.00020818,3]
[348336373,1736451045078,-500.0,0.00020819,3]
[348336375,1736451045087,-500.0,0.00020819,3]
[348336377,1736451045097,-500.0,0.00020819,3]
[348336379,1736451045106,-500.0,0.00020942,2]
[348336381,1736451045115,-500.0,0.00021034,3]
[348336383,1736451045124,-1685.52,0.00021034,3]
[348336385,1736451045133,-1138.58,0.00021036,3]
[348336387,1736451045143,-617.14,0.0002109,2]
[348336389,1736451045153,-600.96,0.0002109,3]
[348336391,1736451045162,-500.0,0.0002109,3]
[348336393,1736451045172,-500.0,0.0002109,3]
[348336395,1736451045182,-500.0,0.0002109,3]
[348336397,1736451045191,-500.0,0.0002109,3]
[348336399,1736451045202,-500.0,0.0002109,3]
[348336402,1736451045212,-187.11093627,0.00021091,3]
[348336403,1736451045221,-500.0,0.00021091,3]
[348336405,1736451045230,-500.0,0.00021091,3]
[348336407,1736451045239,-500.0,0.00021091,3]
[348336409,1736451045249,-500.0,0.00021091,3]
[348336412,1736451045259,-6844.32,0.00021091,3]
[348336414,1736451045268,-500.0,0.00021091,3]
[348336415,1736451045277,-500.0,0.00021091,3]
[348336417,1736451045286,-500.0,0.00021091,3]
[348336419,1736451045296,-500.0,0.00021091,3]
[348336422,1736451045306,-500.0,0.00021091,3]
[348336423,1736451045316,-649.98596205,0.00021091,3]
[348336425,1736451045327,-500.0,0.00021091,3]
[348336427,1736451045337,-422.98,0.00021091,3]
[348336430,1736451045347,-580.21,0.00021091,3]
[348336432,1736451045357,-2083.33,0.00021091,3]
[348336433,1736451045367,-500.0,0.00021092,3]
[348336435,1736451045377,-500.0,0.00021092,3]
[348336438,1736451045386,-500.0,0.00021092,3]
[348336440,1736451045397,-769.01,0.00021092,3]
[348336442,1736451045407,-500.0,0.00021093,3]
[348336443,1736451045417,-186.6484067,0.000212,30]
[348336446,1736451045427,-167.04315328,0.00021232,2]
[348336448,1736451045437,-500.0,0.00021308,3]
[348336450,1736451045452,-1685.52,0.00021308,3]
[348336452,1736451045460,-1138.58,0.0002131,3]
[348336454,1736451045469,-617.14,0.00021364,2]
[348336456,1736451045479,-600.96,0.00021364,3]
[348336458,1736451045489,-500.0,0.00021364,3]
[348336460,1736451045499,-500.0,0.00021364,3]
[348336462,1736451045509,-500.0,0.00021364,3]
[348336464,1736451045519,-500.0,0.00021364,3]
[348336466,1736451045528,-573.47,0.00021364,3]
[348336468,1736451045538,-500.0,0.00021365,3]
[348336470,1736451045547,-500.0,0.00021365,3]
[348336472,1736451045557,-500.0,0.00021365,3]
[348336474,1736451045566,-6844.32,0.00021365,3]
[348336476,1736451045575,-500.0,0.00021365,3]
[348336478,1736451045584,-500.0,0.00021365,3]
[348336480,1736451045594,-500.0,0.00021365,3]
[348336482,1736451045603,-500.0,0.00021365,3]
[348336484,1736451045612,-500.0,0.00021365,3]
[348336491,1736451045701,-500.0,0.00021365,3]
[348336492,1736451045711,-2083.33,0.00021365,3]
[348336493,1736451045721,-500.0,0.00021366,3]
[348336494,1736451045731,-294.6,0.00021366,3]
[348336495,1736451045740,-500.0,0.00021366,3]
[348336496,1736451045751,-769.01,0.00021366,3]
[348336497,1736451045760,-440.18,0.00021367,3]
[348336498,1736451045770,-978.17174485,0.0002149,2]
[348336503,1736451045921,-500.0,0.00019994,3]
[348336505,1736451045931,-500.0,0.00019994,3]
[348336507,1736451045941,-192.3685827,0.00020268,3]
[348336509,1736451045959,-307.6314173,0.00020268,3]
[348336511,1736451045969,-235.30414311,0.00020268,3]
[348336513,1736451045979,-303.8440732,0.00021582,3]
[348336647,1736451309870,20527.19178037,0.00025,120]
[348336648,1736451846627,163.136769,0.00013973,2]
[348336652,1736452028134,-150.0,0.00018991,2]
[348336653,1736452028154,-176.84710488,0.00019893,2]
[348336654,1736452028175,-100.99890035,0.00019993,2]
[348336655,1736452031134,-70.22509965,0.00019993,2]
[348336656,1736452031157,-300.0,0.00019993,2]
[348336657,1736452031179,-570.40488127,0.00019994,3]
[348336658,1736452031202,-83.43920885,0.00019994,3]
[348336659,1736452032102,-416.56079115,0.00019994,3]
[348336660,1736452032126,-467.66591374,0.00019994,3]
[348336661,1736452047093,-164.568038,0.00019178,2]
[348336662,1736452047116,-32.33408626,0.00019994,3]
[348336663,1736452047139,-541.65,0.00019994,7]
[348336664,1736452047162,-500.0,0.00019994,3]
[348336665,1736452047185,-500.0,0.00019994,3]
[348336666,1736452047208,-500.0,0.00019994,3]
[348336667,1736452047233,-500.0,0.00019994,3]
[348336668,1736452047256,-584.36,0.00019994,3]
[348336669,1736452047278,-500.0,0.00019994,3]
[348336670,1736452047303,-597.59,0.00019994,3]
[348336671,1736452047326,-500.0,0.00019994,3]
[348336672,1736452047348,-500.0,0.00019994,3]
[348336673,1736452047373,-534.65,0.00019994,3]
[348336674,1736452047396,-500.0,0.00019994,3]
[348336675,1736452047418,-500.0,0.00019996,3]
[348336676,1736452047444,-862.09388951,0.00019997,3]
[348336709,1736452232877,-150.0,0.000189,2]
[348336710,1736452232887,-136.36988154,0.00019897,2]
[348336912,1736452239825,-166.50898206,0.00019897,2]
[348336914,1736452239835,-1298.45,0.00019996,3]
[348336916,1736452239845,-319.7859268,0.00019997,3]
[348336917,1736452239858,-918.25,0.00019997,3]
[348336918,1736452239867,-300.0,0.00020209,2]
[348336919,1736452239880,-500.0,0.0002021,2]
[348336920,1736452239890,-500.0,0.0002021,3]
[348336921,1736452239899,-500.0,0.0002021,3]
[348336922,1736452239909,-500.0,0.0002021,3]
[348336923,1736452239918,-500.0,0.0002021,3]
[348336924,1736452239928,-500.0,0.0002021,3]
[348336925,1736452239938,-500.0,0.0002021,3]
[348336926,1736452239947,-500.0,0.0002021,3]
[348336927,1736452239957,-500.0,0.0002021,3]
[348336928,1736452239967,-500.0,0.00020266,3]
[348336929,1736452239976,-500.0,0.00020266,3]
[348336930,1736452239986,-500.0,0.00020266,3]
[348336931,1736452239996,-500.0,0.00020266,3]
[348336932,1736452240006,-500.0,0.00020266,3]
[348336933,1736452240016,-1562.5,0.00020266,3]
[348336934,1736452240025,-500.0,0.00020266,3]
[348336935,1736452240035,-500.0,0.00020266,3]
[348336936,1736452240044,-500.0,0.00020266,3]
[348336937,1736452240053,-5133.24,0.00020266,3]
[348336938,1736452240063,-500.0,0.00020266,3]
[348336940,1736452240073,-500.0,0.00020266,3]
[348336941,1736452240082,-500.0,0.00020266,3]
[348336943,1736452240091,-500.0,0.00020267,3]
[348336944,1736452240101,-597.59,0.00020268,3]
[348336946,1736452240111,-534.65,0.00020268,3]
[348336948,1736452240120,-1298.45,0.0002027,3]
[348336949,1736452240134,-918.25,0.00020271,3]
[348336951,1736452240144,-13089.27685615,0.00020309,2]
[348336953,1736452240154,-500.0,0.00020484,2]
[348336954,1736452240163,-500.0,0.00020484,3]
[348336955,1736452240173,-500.0,0.00020484,3]
[348336956,1736452240183,-500.0,0.00020484,3]
[348336957,1736452240192,-500.0,0.00020484,3]
[348336958,1736452240202,-500.0,0.00020484,3]
[348336959,1736452240211,-500.0,0.00020484,3]
[348336960,1736452240221,-500.0,0.00020484,3]
[348336961,1736452240231,-500.0,0.00020484,3]
[348336963,1736452240240,-500.0,0.00020488,2]
[348336964,1736452240249,-500.0,0.00020488,2]
[348336965,1736452240259,-480.86691111,0.00020488,2]
[348336966,1736452240268,-500.0,0.00020488,2]
[348336967,1736452240278,-463.71552089,0.00020488,2]
[348336968,1736452240287,-500.0,0.00020488,2]
[348336969,1736452240296,-500.0,0.00020488,2]
[348336970,1736452240305,-500.0,0.00020488,2]
[348336971,1736452240315,-500.0,0.00020488,2]
[348336972,1736452240325,-500.0,0.00020488,2]
[348336973,1736452240335,-500.0,0.00020488,2]
[348336974,1736452240344,-500.0,0.00020488,2]
[348336975,1736452240354,-500.0,0.00020488,2]
[348336976,1736452240363,-500.0,0.00020488,2]
[348336977,1736452240373,-500.0,0.00020488,2]
[348336978,1736452240388,-500.0,0.00020488,2]
[348336979,1736452240397,-500.0,0.00020488,2]
[348336980,1736452240407,-254.6769954,0.00020488,2]
[348336981,1736452240417,-500.0,0.00020488,2]
[348336982,1736452240427,-500.0,0.00020488,2]
[348336983,1736452240437,-500.0,0.00020488,2]
[348336984,1736452240446,-500.0,0.00020488,2]
[348336985,1736452240455,-500.0,0.00020488,2]
[348336986,1736452240465,-500.0,0.00020488,2]
[348336987,1736452240474,-167.84,0.0002054,3]
[348336988,1736452240484,-500.0,0.0002054,3]
[348336989,1736452240495,-500.0,0.0002054,3]
[348336990,1736452240504,-388.65986241,0.0002054,3]
[348336991,1736452240514,-1562.5,0.0002054,3]
[348336992,1736452240523,-500.0,0.0002054,3]
[348336993,1736452240532,-500.0,0.0002054,3]
[348336994,1736452240542,-5133.24,0.0002054,3]
[348336995,1736452240551,-494.83,0.0002054,3]
[348336996,1736452240561,-500.0,0.00020541,3]
[348336997,1736452240570,-597.59,0.00020542,3]
[348336998,1736452240579,-534.65,0.00020542,3]
[348337000,1736452240589,-1298.45,0.00020544,3]
[348337002,1736452240598,-918.25,0.00020545,3]
[348337004,1736452240608,-13089.27685615,0.00020571,2]
[348337005,1736452240617,-500.0,0.00020758,2]
[348337006,1736452240631,-500.0,0.00020758,3]
[348337007,1736452240643,-500.0,0.00020758,3]
[348337008,1736452240655,-261.10779297,0.00020758,3]
[348337009,1736452240664,-500.0,0.00020758,3]
[348337010,1736452240674,-500.0,0.00020758,3]
[348337011,1736452240686,-500.0,0.00020758,3]
[348337012,1736452240695,-296.58542893,0.00020758,3]
[348337013,1736452240708,-203.41457107,0.00020758,3]
[348337014,1736452240719,-500.0,0.00020814,3]
[348337015,1736452240730,-500.0,0.00020814,3]
[348337016,1736452240739,-1562.5,0.00020814,3]
[348337017,1736452240750,-500.0,0.00020814,3]
[348337018,1736452240759,-285.29,0.00020814,3]
[348337019,1736452240768,-5133.24,0.00020814,3]
[348337021,1736452240778,-230.95,0.00020815,3]
[348337023,1736452240788,-597.59,0.00020816,3]
[348337025,1736452240798,-534.65,0.00020816,3]
[348337027,1736452240807,-1298.45,0.00020818,3]
[348337029,1736452240816,-918.25,0.00020819,3]
[348337031,1736452240826,-6498.42727204,0.00020853,2]
[348337033,1736452240838,-2452.68352797,0.00020853,2]
[348337035,1736452240849,-4138.16605614,0.00020853,2]
[348337037,1736452240858,-202.57555791,0.00021032,2]
[348337039,1736452240870,-297.42444209,0.00021032,2]
[348337041,1736452240883,-500.0,0.00021032,3]
[348337044,1736452240892,-500.0,0.00021032,3]
[348337047,1736452240901,-500.0,0.00021032,3]
[348337049,1736452240911,-500.0,0.00021032,3]
[348337051,1736452240919,-385.96005977,0.00021032,3]
[348337053,1736452240929,-500.0,0.00021032,3]
[348337055,1736452240938,-500.0,0.00021088,3]
[348337057,1736452240947,-380.11,0.00021088,3]
[348337059,1736452240957,-1562.5,0.00021088,3]
[348337061,1736452240966,-500.0,0.00021088,3]
[348337063,1736452240974,-5133.24,0.00021088,3]
[348337065,1736452240984,-597.59,0.0002109,3]
[348337067,1736452240992,-534.65,0.0002109,3]
[348337069,1736452241002,-1298.45,0.00021092,3]
[348337071,1736452241013,-918.25,0.00021093,3]
[348337073,1736452241022,-13089.27685616,0.00021165,2]
[348337075,1736452241032,-260.83116044,0.00021305,2]
[348337077,1736452241041,-500.0,0.00021306,2]
[348337079,1736452241051,-500.0,0.00021306,3]
[348337081,1736452241060,-500.0,0.00021306,3]
[348337083,1736452241069,-500.0,0.00021306,3]
[348337085,1736452241078,-500.0,0.00021306,3]
[348337087,1736452241087,-500.0,0.00021306,3]
[348337089,1736452241097,-500.0,0.00021362,3]
[348337091,1736452241106,-1562.5,0.00021362,3]
[348337093,1736452241115,-500.0,0.00021362,3]
[348337095,1736452241125,-5133.24,0.00021362,3]
[348337097,1736452241139,-597.59,0.00021364,3]
[348337099,1736452241148,-534.65,0.00021364,3]
[348337101,1736452241157,-1298.45,0.00021366,3]
[348337102,1736452241167,-918.25,0.00021367,3]
[348337103,1736452241176,-500.0,0.0002158,2]
[348337104,1736452241185,-500.0,0.0002158,3]
[348337105,1736452241195,-500.0,0.0002158,3]
[348337106,1736452241204,-500.0,0.0002158,3]
[348337107,1736452241214,-500.0,0.0002158,3]
[348337108,1736452241224,-500.0,0.0002158,3]
[348337109,1736452241233,-500.0,0.00021636,3]
[348337110,1736452241242,-1562.5,0.00021636,3]
[348337111,1736452241252,-500.0,0.00021636,3]
[348337112,1736452241261,-5133.24,0.00021636,3]
[348337113,1736452241270,-597.59,0.00021638,3]
[348337114,1736452241279,-534.65,0.00021638,3]
[348337115,1736452241289,-151.0,0.0002164,2]
[348337116,1736452241298,-1298.45,0.0002164,3]
[348337117,1736452241308,-172.34712994,0.00021641,2]
[348337118,1736452241317,-160.44069323,0.00021641,2]
[348337119,1736452241326,-918.25,0.00021641,3]
[348337120,1736452241336,-500.0,0.00021854,2]
[348337121,1736452241345,-500.0,0.00021854,3]
[348337122,1736452241428,-500.0,0.00021854,3]
[348337123,1736452241439,-500.0,0.00021854,3]
[348337124,1736452241450,-500.0,0.00021854,3]
[348337125,1736452241459,-500.0,0.00021854,3]
[348337126,1736452241469,-214.48,0.0002191,3]
[348337127,1736452241478,-1562.5,0.0002191,3]
[348337128,1736452241487,-500.0,0.0002191,3]
[348337129,1736452241495,-5133.24,0.0002191,3]
[348337130,1736452241505,-597.59,0.00021912,3]
[348337131,1736452241515,-534.65,0.00021912,3]
[348337132,1736452241524,-151.0,0.00021914,2]
[348337133,1736452241533,-151.0,0.00021914,2]
[348337134,1736452241542,-1298.45,0.00021914,3]
[348337135,1736452241551,-918.25,0.00021915,3]
[348337136,1736452241561,-24999.000001,0.00022,2]
[348337137,1736452241570,-636.717,0.0002203,2]
[348337138,1736452241579,-500.0,0.00022128,2]
[348337139,1736452241589,-500.0,0.00022128,3]
[348337140,1736452241598,-500.0,0.00022128,3]
[348337141,1736452241607,-457.69,0.00022128,3]
[348337142,1736452241617,-500.0,0.00022128,3]
[348337143,1736452241629,-500.0,0.00022128,3]
[348337144,1736452241639,-163.136769,0.00022174,2]
[348337145,1736452241652,-1562.5,0.00022184,3]
[348337146,1736452241661,-500.0,0.00022184,3]
[348337147,1736452241670,-5133.24,0.00022184,3]
[348337148,1736452241680,-597.59,0.00022186,3]
[348337149,1736452241690,-534.65,0.00022186,3]
[348337150,1736452241699,-1298.45,0.00022188,3]
[348337151,1736452241708,-918.25,0.00022189,3]
[348337152,1736452241719,-500.0,0.00022402,2]
[348337153,1736452241728,-500.0,0.00022402,3]
[348337154,1736452241737,-500.0,0.00022402,3]
[348337155,1736452241746,-500.0,0.00022402,3]
[348337156,1736452241756,-500.0,0.00022402,3]
[348337157,1736452241765,-1562.5,0.00022458,3]
[348337158,1736452241774,-500.0,0.00022458,3]
[348337159,1736452241783,-5133.24,0.00022458,3]
[348337160,1736452241792,-597.59,0.0002246,3]
[348337161,1736452241802,-534.65,0.0002246,3]
[348337162,1736452241811,-1298.45,0.00022462,3]
[348337163,1736452241820,-918.25,0.00022463,3]
[348337164,1736452241830,-151.0,0.000225,7]
[348337165,1736452241839,-500.0,0.00022676,2]
[348337166,1736452241848,-500.0,0.00022676,3]
[348337167,1736452241858,-291.31,0.00022676,3]
[348337168,1736452241867,-500.0,0.00022676,3]
[348337169,1736452241876,-500.0,0.00022676,3]
[348337170,1736452241890,-151.0,0.000227,6]
[348337171,1736452241899,-1562.5,0.00022732,3]
[348337172,1736452241908,-500.0,0.00022732,3]
[348337173,1736452241917,-1541.23955826,0.00022732,3]
[348337174,1736452241983,-3592.00044174,0.00022732,3]
[348337175,1736452241992,-597.59,0.00022734,3]
[348337176,1736452242001,-534.65,0.00022734,3]
[348337177,1736452242011,-151.0,0.00022736,7]
[348337178,1736452242020,-1298.45,0.00022736,3]
[348337179,1736452242029,-918.25,0.00022737,3]
[348337180,1736452242039,-1510.34085457,0.00022773,2]
[348337181,1736452242048,-150.0,0.00022783,2]
[348337182,1736452242057,-2076.0,0.00022783,2]
[348337183,1736452242067,-448.012,0.00022783,2]
[348337184,1736452242076,-567.45753143,0.00022783,2]
[348337185,1736452242175,-500.0,0.00022783,2]
[348337490,1736452246620,-703.33,0.00019996,3]
[348337492,1736452246633,-703.33,0.0002027,3]
[348337495,1736452246647,-165.99735149,0.00020384,2]
[348337497,1736452246656,-703.33,0.00020544,3]
[348337499,1736452246666,-703.33,0.00020818,3]
[348337501,1736452246676,-539.42246857,0.00022783,2]
[348337503,1736452246686,-394.0,0.00022783,2]
[348337505,1736452246696,-1500.0,0.000228,7]
[348337507,1736452246705,-151.0,0.000229,6]
[348337509,1736452246715,-500.0,0.0002295,2]
[348337511,1736452246724,-500.0,0.0002295,3]
[348337513,1736452246734,-578.44,0.0002295,3]
[348337515,1736452246743,-500.0,0.0002295,3]
[348337516,1736452246753,-1562.5,0.00023006,3]
[348337519,1736452246763,-500.0,0.00023006,3]
[348337521,1736452246773,-5133.24,0.00023006,3]
[348337523,1736452246782,-597.59,0.00023008,3]
[348337524,1736452246791,-534.65,0.00023008,3]
[348337527,1736452246808,-151.0,0.0002301,7]
[348337530,1736452246822,-918.25,0.00023011,3]
[348337532,1736452246832,-151.0,0.000231,8]
[348337534,1736452246842,-278.45501954,0.0002314,2]
[348337536,1736452246851,-151.0,0.0002319,2]
[348337538,1736452246861,-275.0,0.00023191,2]
[348337540,1736452246871,-151.0,0.00023191,7]
[348337542,1736452246884,-151.0,0.00023191,7]
[348337544,1736452246894,-13725.212513,0.00023191,2]
[348337546,1736452246904,-1037.33,0.000232,2]
[348337548,1736452246914,-500.828604,0.000232,10]
[348337550,1736452246924,-500.0,0.00023224,2]
[348337552,1736452246933,-500.0,0.00023224,3]
[348337554,1736452246943,-500.0,0.00023224,3]
[348337556,1736452246953,-733.05466399,0.00023232,3]
[348337558,1736452246963,-161.39487775,0.00023232,7]
[348337560,1736452246973,-161.39487775,0.00023232,7]
[348337562,1736452246982,-161.39487775,0.00023232,7]
[348337564,1736452246991,-161.39487775,0.00023232,7]
[348337566,1736452247000,-161.39487775,0.00023232,7]
[348337568,1736452247010,-161.39487775,0.00023232,7]
[348337570,1736452247019,-161.39487775,0.00023232,7]
[348337572,1736452247029,-161.39487775,0.00023232,7]
[348337574,1736452247038,-161.39487775,0.00023232,7]
[348337576,1736452247047,-161.39487775,0.00023232,7]
[348337578,1736452247057,-161.39,0.00023232,7]
[348337580,1736452247067,-156.64796958,0.00023232,7]
[348337582,1736452247077,-156.64796958,0.00023232,7]
[348337584,1736452247086,-156.64796958,0.00023232,7]
[348337587,1736452247096,-156.64796958,0.00023232,7]
[348337589,1736452247106,-156.64796958,0.00023232,7]
[348337591,1736452247116,-156.64796958,0.00023232,7]
[348337593,1736452247125,-156.64796958,0.00023232,7]
[348337595,1736452247136,-156.64796958,0.00023232,7]
[348337597,1736452247146,-156.64796958,0.00023232,7]
[348337599,1736452247155,-156.64796958,0.00023232,7]
[348337601,1736452247165,-156.64796958,0.00023232,7]
[348337603,1736452247174,-156.64796958,0.00023232,7]
[348337605,1736452247183,-156.64796958,0.00023232,7]
[348337607,1736452247193,-156.64796958,0.00023232,7]
[348337609,1736452247202,-156.64796958,0.00023232,7]
[348337611,1736452247213,-156.64796958,0.00023232,7]
[348337613,1736452247222,-156.64,0.00023232,7]
[348337615,1736452247233,-151.0,0.00023238,2]
[348337617,1736452247242,-151.0,0.00023238,7]
[348337619,1736452247251,-151.0,0.00023238,7]
[348337621,1736452247260,-151.0,0.00023238,7]
[348337623,1736452247270,-151.0,0.00023238,7]
[348337625,1736452247280,-1562.5,0.0002328,3]
[348337627,1736452247290,-187.54,0.0002328,3]
[348337629,1736452247300,-5133.24,0.0002328,3]
[348337631,1736452247310,-597.59,0.00023282,3]
[348337633,1736452247319,-534.65,0.00023282,3]
[348337635,1736452247328,-918.25,0.00023285,3]
[348337637,1736452247338,-2000.0,0.000233,2]
[348337639,1736452247347,-2000.0,0.000233,2]
[348337641,1736452247356,-151.0,0.000233,7]
[348337643,1736452247366,-2558.0,0.00023328,7]
[348337645,1736452247375,-151.0,0.0002333,7]
[348337647,1736452247387,-151.0,0.0002333,7]
[348337649,1736452247396,-151.0,0.0002333,7]
[348337651,1736452247406,-151.0,0.0002333,7]
[348337653,1736452247416,-151.0,0.0002333,7]
[348337655,1736452247426,-151.0,0.0002333,7]
[348337657,1736452247436,-172.98748999,0.00023331,10]
[348337658,1736452247446,-150.26,0.00023331,10]
[348337661,1736452247456,-500.0,0.00023331,10]
[348337662,1736452247465,-500.0,0.00023331,10]
[348337664,1736452247474,-500.0,0.00023331,10]
[348337666,1736452247484,-150.26,0.00023331,2]
[348337668,1736452247494,-150.42008958,0.00023331,10]
[348337670,1736452247504,-150.26,0.00023331,10]
[348337672,1736452247513,-150.26,0.00023331,2]
[348337674,1736452247523,-500.0,0.00023331,10]
[348337676,1736452247533,-853.57873447,0.00023331,10]
[348337678,1736452247542,-150.26,0.00023331,2]
[348337680,1736452247551,-500.0,0.00023331,10]
[348337682,1736452247561,-150.26,0.00023331,2]
[348337685,1736452247571,-500.0,0.00023331,10]
[348337687,1736452247581,-500.0,0.00023331,10]
[348337689,1736452247590,-294.22725156,0.00023331,9]
[348337691,1736452247600,-150.26,0.00023331,2]
[348337693,1736452247610,-500.0,0.00023331,10]
[348337695,1736452247620,-500.0,0.00023331,10]
[348337696,1736452247629,-152.66725,0.00023332,7]
[348337699,1736452247650,-69262.50930553,0.00023333,10]
[348337718,1736452717765,166.372971,0.00013973,2]
[348337724,1736453232149,-500.0,0.00019994,3]
[348337725,1736453232177,-586.11,0.00019994,3]
[348337726,1736453232197,-252.9480015,0.00019996,3]
[348337727,1736453232220,-500.60432043,0.00019996,3]
[348337728,1736453232245,-500.0,0.00019996,3]
[348337729,1736453232268,-165.29434075,0.0002017,2]
[348337730,1736453232289,-300.0,0.00020207,2]